[Event "*** Titled Tuesday Blitz"]
[Site "Chess.com"]
[Date "2018.07.03"]
[Round "7"]
[White "eljanov"]
[Black "VitaliyBernadskiy"]
[Result "1-0"]
[WhiteElo "2664"]
[BlackElo "2709"]
[TimeControl "180+2"]
[EndTime "14:30:42 PDT"]
[Termination "eljanov won by resignation"]

1. c4 {[%clk 0:03:00]} 1... e6 {[%clk 0:02:59.2]} 2. Nc3 {[%clk 0:03:00]} 2...
d5 {[%clk 0:02:57.6]} 3. d4 {[%clk 0:03:00.9]} 3... Ne7 {[%clk 0:02:58.2]} 4.
Nf3 {[%clk 0:02:57.6]} 4... g6 {[%clk 0:02:58.3]} 5. Bg5 {[%clk 0:02:54.9]} 5...
Bg7 {[%clk 0:02:54.5]} 6. e3 {[%clk 0:02:53]} 6... Nbc6 {[%clk 0:02:48.8]} 7.
cxd5 {[%clk 0:02:36.1]} 7... exd5 {[%clk 0:02:48.9]} 8. Bb5 {[%clk 0:02:37.6]}
8... h6 {[%clk 0:02:41.5]} 9. Bh4 {[%clk 0:02:31.1]} 9... O-O {[%clk 0:02:32.9]}
10. O-O {[%clk 0:02:22.1]} 10... Be6 {[%clk 0:02:26.1]} 11. Bxc6 {[%clk
0:02:16.7]} 11... bxc6 {[%clk 0:02:28]} 12. Rc1 {[%clk 0:02:17.5]} 12... g5
{[%clk 0:02:15.7]} 13. Bg3 {[%clk 0:02:18.5]} 13... Nf5 {[%clk 0:02:17.1]} 14.
Na4 {[%clk 0:02:03.5]} 14... h5 {[%clk 0:01:41.8]} 15. Nc5 {[%clk 0:01:51.4]}
15... Nxg3 {[%clk 0:01:29.3]} 16. Nxe6 {[%clk 0:01:31.2]} 16... fxe6 {[%clk
0:01:31.2]} 17. hxg3 {[%clk 0:01:31.7]} 17... h4 {[%clk 0:01:13.5]} 18. gxh4
{[%clk 0:01:13.4]} 18... gxh4 {[%clk 0:01:09.4]} 19. Rxc6 {[%clk 0:01:13.8]}
19... Qf6 {[%clk 0:00:57.6]} 20. Ne5 {[%clk 0:01:02.8]} 20... Rab8 {[%clk
0:00:40.9]} 21. Nd7 {[%clk 0:00:52.9]} 21... Qg6 {[%clk 0:00:39.6]} 22. Qc2
{[%clk 0:00:42.6]} 22... Rf5 {[%clk 0:00:38.3]} 23. Nxb8 {[%clk 0:00:39.7]}
23... h3 {[%clk 0:00:30.3]} 24. f4 {[%clk 0:00:31.1]} 24... Qg4 {[%clk
0:00:13.2]} 25. Rf3 {[%clk 0:00:31.2]} 25... Rh5 {[%clk 0:00:10.2]} 26. Qf2
{[%clk 0:00:31.1]} 26... Qf5 {[%clk 0:00:09]} 27. Rc1 {[%clk 0:00:28.8]} 27...
Qd3 {[%clk 0:00:07.5]} 28. Nc6 {[%clk 0:00:26.6]} 28... Kh8 {[%clk 0:00:05.3]}
29. Rxh3 {[%clk 0:00:25.9]} 29... Rxh3 {[%clk 0:00:04.9]} 30. gxh3 {[%clk
0:00:27.1]} 1-0

[Event "*** Titled Tuesday Blitz"]
[Site "Chess.com"]
[Date "2018.07.03"]
[Round "7"]
[White "Gr3egor"]
[Black "Spring199"]
[Result "0-1"]
[WhiteElo "2373"]
[BlackElo "2206"]
[TimeControl "180+2"]
[EndTime "14:30:42 PDT"]
[Termination "Spring199 won by resignation"]

1. d4 {[%clk 0:03:01.9]} 1... d5 {[%clk 0:02:59.5]} 2. c4 {[%clk 0:03:02.8]}
2... e6 {[%clk 0:03:00.3]} 3. Nc3 {[%clk 0:03:03.9]} 3... Bb4 {[%clk 0:03:00.8]}
4. Nf3 {[%clk 0:03:01.5]} 4... Nf6 {[%clk 0:03:01.3]} 5. Bg5 {[%clk 0:03:01.8]}
5... dxc4 {[%clk 0:03:01.3]} 6. e4 {[%clk 0:02:59.9]} 6... c5 {[%clk 0:03:00.6]}
7. Bxc4 {[%clk 0:02:55]} 7... cxd4 {[%clk 0:02:59.1]} 8. Nxd4 {[%clk 0:02:52.9]}
8... Qa5 {[%clk 0:02:52.6]} 9. Bxf6 {[%clk 0:02:46.6]} 9... gxf6 {[%clk
0:02:49.2]} 10. Bb5+ {[%clk 0:02:36.8]} 10... Bd7 {[%clk 0:02:46.9]} 11. O-O
{[%clk 0:02:28.4]} 11... a6 {[%clk 0:02:20.8]} 12. Nb3 {[%clk 0:02:15.5]} 12...
Qb6 {[%clk 0:02:11.5]} 13. Bxd7+ {[%clk 0:02:03.6]} 13... Nxd7 {[%clk
0:02:13.4]} 14. Rc1 {[%clk 0:02:04.6]} 14... Rg8 {[%clk 0:02:08]} 15. Kh1 {[%clk
0:01:57.9]} 15... Ke7 {[%clk 0:02:05.7]} 16. f4 {[%clk 0:01:54.8]} 16... Rg6
{[%clk 0:01:56.2]} 17. f5 {[%clk 0:01:46.8]} 17... Rh6 {[%clk 0:01:54.5]} 18.
Qd2 {[%clk 0:01:36]} 18... Rh4 {[%clk 0:01:45.4]} 19. g3 {[%clk 0:01:31.8]}
19... Rh5 {[%clk 0:01:41.2]} 20. Qe2 {[%clk 0:01:25.1]} 20... Rg5 {[%clk
0:01:38.1]} 21. fxe6 {[%clk 0:01:24.9]} 21... fxe6 {[%clk 0:01:38.3]} 22. Rcd1
{[%clk 0:01:21.1]} 22... Ne5 {[%clk 0:01:34.5]} 23. Rf4 {[%clk 0:00:59.5]} 23...
Rag8 {[%clk 0:01:33.5]} 24. Rdf1 {[%clk 0:00:59.6]} 24... Ng4 {[%clk 0:01:18.2]}
25. e5 {[%clk 0:00:54]} 25... Rxe5 {[%clk 0:01:13.8]} 26. Qc4 {[%clk 0:00:54.3]}
26... Ne3 {[%clk 0:01:00.4]} 27. Qd3 {[%clk 0:00:51.9]} 27... Nxf1 {[%clk
0:00:56.4]} 28. Qxh7+ {[%clk 0:00:52]} 28... Kd6 {[%clk 0:00:52.5]} 29. Qxg8
{[%clk 0:00:44]} 29... Re1 {[%clk 0:00:40.5]} 30. Ne4+ {[%clk 0:00:37.2]} 30...
Ke5 {[%clk 0:00:35.2]} 31. Qb8+ {[%clk 0:00:22.8]} 31... Bd6 {[%clk 0:00:34.8]}
32. Qxd6+ {[%clk 0:00:20.6]} 32... Qxd6 {[%clk 0:00:34.3]} 33. Nxd6 {[%clk
0:00:21.9]} 33... Ne3+ {[%clk 0:00:33.8]} 0-1

[Event "*** Titled Tuesday Blitz"]
[Site "Chess.com"]
[Date "2018.07.03"]
[Round "7"]
[White "Margency"]
[Black "Alopekos"]
[Result "1-0"]
[WhiteElo "2660"]
[BlackElo "2430"]
[TimeControl "180+2"]
[EndTime "14:30:45 PDT"]
[Termination "Margency won by resignation"]

1. e4 {[%clk 0:03:01.9]} 1... e5 {[%clk 0:02:58.3]} 2. Nf3 {[%clk 0:03:02.5]}
2... Nc6 {[%clk 0:02:59.5]} 3. Bc4 {[%clk 0:03:03.3]} 3... Nf6 {[%clk 0:03:00]}
4. d3 {[%clk 0:03:04.1]} 4... Be7 {[%clk 0:03:00.7]} 5. O-O {[%clk 0:03:04.4]}
5... O-O {[%clk 0:03:02]} 6. Re1 {[%clk 0:03:05.3]} 6... d6 {[%clk 0:03:02.6]}
7. a4 {[%clk 0:03:06.4]} 7... Kh8 {[%clk 0:02:59.6]} 8. Nc3 {[%clk 0:03:02.4]}
8... Bg4 {[%clk 0:02:58.4]} 9. Be3 {[%clk 0:02:58.7]} 9... Nd4 {[%clk
0:02:28.8]} 10. Bxd4 {[%clk 0:02:55.6]} 10... exd4 {[%clk 0:02:30.7]} 11. Nb1
{[%clk 0:02:46.3]} 11... Nd7 {[%clk 0:02:16.5]} 12. Nbd2 {[%clk 0:02:39.2]}
12... Ne5 {[%clk 0:02:15.1]} 13. h3 {[%clk 0:02:27.4]} 13... Bxf3 {[%clk
0:01:53.6]} 14. Nxf3 {[%clk 0:02:27.2]} 14... Nxc4 {[%clk 0:01:47.2]} 15. dxc4
{[%clk 0:02:29.1]} 15... c5 {[%clk 0:01:46.9]} 16. Re2 {[%clk 0:02:22.2]} 16...
Bf6 {[%clk 0:01:46.2]} 17. Ne1 {[%clk 0:02:22.7]} 17... Re8 {[%clk 0:01:37.2]}
18. Nd3 {[%clk 0:02:22.5]} 18... Qb6 {[%clk 0:01:16.7]} 19. b3 {[%clk 0:02:20]}
19... Qc6 {[%clk 0:01:17.5]} 20. Qe1 {[%clk 0:02:03.8]} 20... Be5 {[%clk
0:01:14.8]} 21. Qf1 {[%clk 0:01:59]} 21... g6 {[%clk 0:00:54.1]} 22. Rae1 {[%clk
0:01:57.9]} 22... Re7 {[%clk 0:00:48.9]} 23. f4 {[%clk 0:01:43.4]} 23... Bg7
{[%clk 0:00:49.5]} 24. Qf3 {[%clk 0:01:44.1]} 24... Rae8 {[%clk 0:00:49.9]} 25.
Kf2 {[%clk 0:01:42.8]} 25... f5 {[%clk 0:00:37.2]} 26. exf5 {[%clk 0:01:40.3]}
26... Qxf3+ {[%clk 0:00:37.1]} 27. Kxf3 {[%clk 0:01:41.1]} 27... Rxe2 {[%clk
0:00:37.3]} 28. Rxe2 {[%clk 0:01:42.5]} 28... Rxe2 {[%clk 0:00:38.3]} 29. Kxe2
{[%clk 0:01:44]} 29... gxf5 {[%clk 0:00:40.2]} 30. Kf3 {[%clk 0:01:42.3]} 30...
h5 {[%clk 0:00:37]} 31. g4 {[%clk 0:01:36.7]} 31... hxg4+ {[%clk 0:00:37.8]} 32.
hxg4 {[%clk 0:01:37.9]} 32... fxg4+ {[%clk 0:00:39.7]} 33. Kxg4 {[%clk
0:01:39.2]} 33... Kg8 {[%clk 0:00:41.4]} 34. Kf5 {[%clk 0:01:40.6]} 34... Kf7
{[%clk 0:00:42.6]} 35. Nf2 {[%clk 0:01:37.9]} 35... Bf8 {[%clk 0:00:29.8]} 36.
Ne4 {[%clk 0:01:37.6]} 36... Ke7 {[%clk 0:00:25.4]} 37. Kg6 {[%clk 0:01:36.3]}
37... Kd7 {[%clk 0:00:19.2]} 38. f5 {[%clk 0:01:35.4]} 38... Be7 {[%clk
0:00:20.6]} 39. Kf7 {[%clk 0:01:33.1]} 39... Bh4 {[%clk 0:00:21.1]} 40. Nf6+
{[%clk 0:01:29.2]} 40... Kc6 {[%clk 0:00:19.9]} 41. Nd5 {[%clk 0:01:29.8]} 41...
b6 {[%clk 0:00:07.5]} 42. Ke6 {[%clk 0:01:30.3]} 42... a6 {[%clk 0:00:07.7]} 43.
f6 {[%clk 0:01:30.6]} 43... Bxf6 {[%clk 0:00:08.3]} 44. Nxf6 {[%clk 0:01:31.3]}
44... b5 {[%clk 0:00:10.2]} 45. axb5+ {[%clk 0:01:31.7]} 45... axb5 {[%clk
0:00:11.2]} 46. Ne4 {[%clk 0:01:29.5]} 46... bxc4 {[%clk 0:00:12.2]} 47. bxc4
{[%clk 0:01:30.4]} 1-0

[Event "*** Titled Tuesday Blitz"]
[Site "Chess.com"]
[Date "2018.07.03"]
[Round "7"]
[White "Saitama_Hero"]
[Black "PaulfromSPb"]
[Result "0-1"]
[WhiteElo "2344"]
[BlackElo "2525"]
[TimeControl "180+2"]
[EndTime "14:30:46 PDT"]
[Termination "PaulfromSPb won by checkmate"]

1. d4 {[%clk 0:03:01.9]} 1... Nf6 {[%clk 0:03:00.5]} 2. c4 {[%clk 0:03:03.3]}
2... e6 {[%clk 0:03:01.3]} 3. Nc3 {[%clk 0:03:04.7]} 3... Bb4 {[%clk 0:03:02.2]}
4. f3 {[%clk 0:03:06.1]} 4... O-O {[%clk 0:02:51.7]} 5. a3 {[%clk 0:03:07.5]}
5... Bxc3+ {[%clk 0:02:50.5]} 6. bxc3 {[%clk 0:03:09.4]} 6... d6 {[%clk
0:02:47.5]} 7. e4 {[%clk 0:03:10.6]} 7... Ne8 {[%clk 0:02:48.5]} 8. Bd3 {[%clk
0:03:09.8]} 8... Nc6 {[%clk 0:02:41.7]} 9. f4 {[%clk 0:03:08.2]} 9... f5 {[%clk
0:02:27.7]} 10. e5 {[%clk 0:03:02.6]} 10... Ne7 {[%clk 0:02:15.2]} 11. Nf3
{[%clk 0:03:02.2]} 11... b6 {[%clk 0:02:13]} 12. O-O {[%clk 0:02:53.3]} 12... h6
{[%clk 0:02:11.5]} 13. a4 {[%clk 0:02:47.2]} 13... d5 {[%clk 0:01:58.9]} 14. Ba3
{[%clk 0:02:30.3]} 14... c6 {[%clk 0:01:56]} 15. Qb3 {[%clk 0:02:21.9]} 15...
Ba6 {[%clk 0:01:50.2]} 16. Rfd1 {[%clk 0:02:08.1]} 16... Bb7 {[%clk 0:01:28.3]}
17. a5 {[%clk 0:02:05.4]} 17... Rf7 {[%clk 0:01:21.5]} 18. a6 {[%clk 0:01:43]}
18... Bc8 {[%clk 0:01:18.9]} 19. cxd5 {[%clk 0:01:42.4]} 19... Nxd5 {[%clk
0:01:16.3]} 20. g3 {[%clk 0:01:38.5]} 20... b5 {[%clk 0:01:04.9]} 21. Bc5 {[%clk
0:01:33.3]} 21... Nec7 {[%clk 0:01:05.4]} 22. c4 {[%clk 0:01:32.1]} 22... bxc4
{[%clk 0:01:04.3]} 23. Bxc4 {[%clk 0:01:34]} 23... g5 {[%clk 0:01:03.7]} 24.
fxg5 {[%clk 0:01:31.3]} 24... hxg5 {[%clk 0:01:04.4]} 25. Bd6 {[%clk 0:01:18.4]}
25... Nb5 {[%clk 0:00:51.2]} 26. Bxb5 {[%clk 0:00:57.8]} 26... cxb5 {[%clk
0:00:51.7]} 27. Qxb5 {[%clk 0:00:59.7]} 27... Bd7 {[%clk 0:00:51.7]} 28. Qd3
{[%clk 0:00:54.1]} 28... Bc6 {[%clk 0:00:49.9]} 29. Rdc1 {[%clk 0:00:51.1]}
29... Rc8 {[%clk 0:00:49.8]} 30. Qd2 {[%clk 0:00:41.6]} 30... f4 {[%clk
0:00:43.9]} 31. Qd3 {[%clk 0:00:38.2]} 31... Kg7 {[%clk 0:00:42]} 32. Ra2 {[%clk
0:00:29.8]} 32... Ba8 {[%clk 0:00:38.7]} 33. Rxc8 {[%clk 0:00:21.6]} 33... Qxc8
{[%clk 0:00:39.1]} 34. Nxg5 {[%clk 0:00:17.7]} 34... Qc1+ {[%clk 0:00:37.6]} 35.
Kf2 {[%clk 0:00:19.2]} 35... fxg3+ {[%clk 0:00:37.6]} 36. Kxg3 {[%clk
0:00:21.1]} 36... Qxg5+ {[%clk 0:00:38.2]} 37. Kh3 {[%clk 0:00:20.2]} 37... Nf4#
{[%clk 0:00:39.3]} 0-1

[Event "*** Titled Tuesday Blitz"]
[Site "Chess.com"]
[Date "2018.07.03"]
[Round "7"]
[White "VerdeNotte"]
[Black "Micki-taryan"]
[Result "1-0"]
[WhiteElo "2619"]
[BlackElo "2836"]
[TimeControl "180+2"]
[EndTime "14:30:56 PDT"]
[Termination "VerdeNotte won by resignation"]

1. e4 {[%clk 0:03:00.8]} 1... d6 {[%clk 0:03:01.4]} 2. d4 {[%clk 0:03:00.7]}
2... e5 {[%clk 0:03:03.3]} 3. Nf3 {[%clk 0:02:59.4]} 3... Nd7 {[%clk 0:03:03.9]}
4. Bc4 {[%clk 0:02:57.8]} 4... Be7 {[%clk 0:03:05.4]} 5. dxe5 {[%clk 0:02:56.3]}
5... Nxe5 {[%clk 0:03:05.6]} 6. Nxe5 {[%clk 0:02:55.3]} 6... dxe5 {[%clk
0:03:07.5]} 7. Qh5 {[%clk 0:02:56.1]} 7... g6 {[%clk 0:02:55.5]} 8. Qxe5 {[%clk
0:02:56]} 8... Nf6 {[%clk 0:02:54.6]} 9. Bh6 {[%clk 0:02:51.7]} 9... Rg8 {[%clk
0:02:52.5]} 10. Bg5 {[%clk 0:02:43.3]} 10... Ng4 {[%clk 0:02:38.6]} 11. Qxe7+
{[%clk 0:02:42.7]} 11... Qxe7 {[%clk 0:02:40.5]} 12. Bxe7 {[%clk 0:02:43.9]}
12... Kxe7 {[%clk 0:02:42.4]} 13. Nc3 {[%clk 0:02:38.7]} 13... c6 {[%clk
0:02:43.3]} 14. Be2 {[%clk 0:02:34]} 14... Nf6 {[%clk 0:02:42.9]} 15. Bc4 {[%clk
0:02:08.3]} 15... g5 {[%clk 0:02:41.7]} 16. a4 {[%clk 0:02:06.2]} 16... a5
{[%clk 0:02:41.6]} 17. O-O {[%clk 0:02:00.5]} 17... Ng4 {[%clk 0:02:40.4]} 18.
Bb3 {[%clk 0:01:46.1]} 18... Ne5 {[%clk 0:02:41.3]} 19. Rad1 {[%clk 0:01:42.4]}
19... h5 {[%clk 0:02:42]} 20. f4 {[%clk 0:01:37.5]} 20... gxf4 {[%clk
0:02:41.7]} 21. Rxf4 {[%clk 0:01:39.4]} 21... h4 {[%clk 0:02:41.2]} 22. Rdf1
{[%clk 0:01:30.5]} 22... h3 {[%clk 0:02:40.8]} 23. g3 {[%clk 0:01:28.1]} 23...
Be6 {[%clk 0:02:34.6]} 24. Bxe6 {[%clk 0:01:27.8]} 24... Kxe6 {[%clk 0:02:33.4]}
25. Rf6+ {[%clk 0:01:26.4]} 25... Ke7 {[%clk 0:02:34.6]} 26. R6f5 {[%clk
0:01:17.9]} 26... Ke6 {[%clk 0:02:35.2]} 27. Ne2 {[%clk 0:01:18.1]} 27... Rae8
{[%clk 0:02:35.3]} 28. Nf4+ {[%clk 0:01:15.9]} 28... Kd6 {[%clk 0:02:36.3]} 29.
Nd3 {[%clk 0:01:17]} 29... Ng4 {[%clk 0:02:32.2]} 30. R1f4 {[%clk 0:01:06.3]}
30... f6 {[%clk 0:02:28.7]} 31. Rxa5 {[%clk 0:01:03.7]} 31... Ne3 {[%clk
0:02:21.9]} 32. Rh5 {[%clk 0:00:53.4]} 32... Kc7 {[%clk 0:02:22.2]} 33. Rxh3
{[%clk 0:00:51.4]} 33... Nxc2 {[%clk 0:02:23.5]} 34. Rh7+ {[%clk 0:00:51.8]}
34... Kb8 {[%clk 0:02:24.9]} 35. Nc5 {[%clk 0:00:48.5]} 35... Rd8 {[%clk
0:02:16.9]} 36. Rxb7+ {[%clk 0:00:44.7]} 36... Ka8 {[%clk 0:02:18.2]} 37. Rb6
{[%clk 0:00:42]} 37... Ne3 {[%clk 0:02:17.6]} 38. Kf2 {[%clk 0:00:31.7]} 38...
Ng4+ {[%clk 0:02:13.7]} 39. Ke2 {[%clk 0:00:31]} 39... Ne5 {[%clk 0:02:14.5]}
40. Rxf6 {[%clk 0:00:29.7]} 40... Rh8 {[%clk 0:02:15.8]} 41. h4 {[%clk
0:00:29.2]} 41... Rhg8 {[%clk 0:02:17.1]} 42. Re6 {[%clk 0:00:28.4]} 42... Nc4
{[%clk 0:02:18.5]} 43. Ra6+ {[%clk 0:00:26.7]} 43... Kb8 {[%clk 0:02:20]} 44.
Re7 {[%clk 0:00:27.1]} 44... Nd6 {[%clk 0:02:17]} 45. Rb6+ {[%clk 0:00:27.9]}
45... Ka8 {[%clk 0:02:17]} 46. Ra6+ {[%clk 0:00:27.7]} 46... Kb8 {[%clk
0:02:17.4]} 47. Rxc6 {[%clk 0:00:28.3]} 47... Rc8 {[%clk 0:01:57.2]} 48. Na6+
{[%clk 0:00:24.2]} 48... Ka8 {[%clk 0:01:57.3]} 49. Nc7+ {[%clk 0:00:21.3]}
49... Kb8 {[%clk 0:01:59.2]} 50. Rxd6 {[%clk 0:00:19]} 50... Rxc7 {[%clk
0:02:00.7]} 51. Rxc7 {[%clk 0:00:19.1]} 51... Kxc7 {[%clk 0:02:02.6]} 52. Rd3
{[%clk 0:00:20.7]} 52... Rb8 {[%clk 0:02:04.5]} 53. b3 {[%clk 0:00:21.4]} 53...
Kb6 {[%clk 0:02:05.6]} 54. Rd5 {[%clk 0:00:21.8]} 54... Rg8 {[%clk 0:02:05.9]}
55. Kf3 {[%clk 0:00:21.3]} 55... Kc6 {[%clk 0:02:06.6]} 56. h5 {[%clk
0:00:22.1]} 56... Rf8+ {[%clk 0:02:08.1]} 57. Rf5 {[%clk 0:00:22.7]} 57... Rh8
{[%clk 0:02:09.8]} 58. b4 {[%clk 0:00:23.2]} 58... Rh7 {[%clk 0:02:11.7]} 59. g4
{[%clk 0:00:23.7]} 59... Kd6 {[%clk 0:02:13.6]} 60. a5 {[%clk 0:00:24.2]} 60...
Ke6 {[%clk 0:02:15.5]} 61. b5 {[%clk 0:00:25.4]} 61... Rc7 {[%clk 0:02:17.1]}
62. a6 {[%clk 0:00:25.4]} 62... Rc1 {[%clk 0:02:19]} 63. Kf4 {[%clk 0:00:26.2]}
63... Rf1+ {[%clk 0:02:20.9]} 64. Kg5 {[%clk 0:00:27.4]} 64... Ra1 {[%clk
0:02:22.8]} 65. h6 {[%clk 0:00:26.2]} 65... Rxa6 {[%clk 0:02:24.7]} 66. bxa6
{[%clk 0:00:26.8]} 1-0

[Event "*** Titled Tuesday Blitz"]
[Site "Chess.com"]
[Date "2018.07.03"]
[Round "7"]
[White "Joel1285"]
[Black "nitpicker"]
[Result "0-1"]
[WhiteElo "1760"]
[BlackElo "2107"]
[TimeControl "180+2"]
[EndTime "14:31:05 PDT"]
[Termination "nitpicker won by checkmate"]

1. d4 {[%clk 0:02:53.9]} 1... Nf6 {[%clk 0:02:59.2]} 2. c4 {[%clk 0:02:54.5]}
2... e6 {[%clk 0:02:59.1]} 3. Nf3 {[%clk 0:02:55.6]} 3... b6 {[%clk 0:02:52.4]}
4. a3 {[%clk 0:02:56.4]} 4... Bb7 {[%clk 0:02:44.9]} 5. Nc3 {[%clk 0:02:56.8]}
5... Ne4 {[%clk 0:02:46]} 6. Nxe4 {[%clk 0:02:43.2]} 6... Bxe4 {[%clk
0:02:44.4]} 7. e3 {[%clk 0:02:44.6]} 7... d6 {[%clk 0:02:40.4]} 8. Bd3 {[%clk
0:02:45.2]} 8... Bxd3 {[%clk 0:02:35.3]} 9. Qxd3 {[%clk 0:02:47.1]} 9... Nd7
{[%clk 0:02:31.4]} 10. O-O {[%clk 0:02:47.7]} 10... g6 {[%clk 0:02:28.2]} 11. e4
{[%clk 0:02:31.1]} 11... Bg7 {[%clk 0:02:25]} 12. Be3 {[%clk 0:02:31.5]} 12...
O-O {[%clk 0:02:23]} 13. Rfd1 {[%clk 0:02:32]} 13... Qe7 {[%clk 0:02:08.5]} 14.
b4 {[%clk 0:02:30.9]} 14... c6 {[%clk 0:01:57.9]} 15. Rac1 {[%clk 0:02:15.7]}
15... Rfd8 {[%clk 0:01:53.4]} 16. d5 {[%clk 0:02:04.8]} 16... exd5 {[%clk
0:01:47.5]} 17. exd5 {[%clk 0:02:03.8]} 17... c5 {[%clk 0:01:36.9]} 18. bxc5
{[%clk 0:01:29.3]} 18... bxc5 {[%clk 0:01:37.7]} 19. Rb1 {[%clk 0:01:30]} 19...
Rab8 {[%clk 0:01:30]} 20. Rxb8 {[%clk 0:01:11.1]} 20... Rxb8 {[%clk 0:01:30.3]}
21. Rb1 {[%clk 0:01:12.9]} 21... Qd8 {[%clk 0:01:28]} 22. Rb3 {[%clk 0:00:56.3]}
22... Rxb3 {[%clk 0:01:16.5]} 23. Qxb3 {[%clk 0:00:58.2]} 23... Qb6 {[%clk
0:01:16.8]} 24. Nd2 {[%clk 0:00:50.5]} 24... Kf8 {[%clk 0:01:05.8]} 25. Qa4
{[%clk 0:00:29.7]} 25... Ke7 {[%clk 0:01:05.8]} 26. Bg5+ {[%clk 0:00:20.6]}
26... f6 {[%clk 0:01:00]} 27. Be3 {[%clk 0:00:19.1]} 27... h6 {[%clk 0:01:00.4]}
28. h4 {[%clk 0:00:19]} 28... f5 {[%clk 0:01:01.4]} 29. h5 {[%clk 0:00:19.6]}
29... g5 {[%clk 0:01:01.4]} 30. Qc2 {[%clk 0:00:19.7]} 30... Kf6 {[%clk
0:00:47.4]} 31. g4 {[%clk 0:00:19.4]} 31... Ne5 {[%clk 0:00:36]} 32. Qxf5+
{[%clk 0:00:19.8]} 32... Ke7 {[%clk 0:00:37.3]} 33. Qe6+ {[%clk 0:00:16.9]}
33... Kf8 {[%clk 0:00:37.6]} 34. Ne4 {[%clk 0:00:15.9]} 34... Qb1+ {[%clk
0:00:34.8]} 35. Kh2 {[%clk 0:00:10.4]} 35... Qxe4 {[%clk 0:00:35.4]} 36. Qxd6+
{[%clk 0:00:11.4]} 36... Kg8 {[%clk 0:00:35.7]} 37. Qxc5 {[%clk 0:00:11]} 37...
Nf3+ {[%clk 0:00:34.3]} 38. Kg3 {[%clk 0:00:10.7]} 38... Be5+ {[%clk 0:00:32.6]}
39. Kh3 {[%clk 0:00:11.7]} 39... Ng1# {[%clk 0:00:33.3]} 0-1

[Event "*** Titled Tuesday Blitz"]
[Site "Chess.com"]
[Date "2018.07.03"]
[Round "7"]
[White "CarlssonLudvig"]
[Black "chesstatour"]
[Result "1-0"]
[WhiteElo "2138"]
[BlackElo "2026"]
[TimeControl "180+2"]
[EndTime "14:31:09 PDT"]
[Termination "CarlssonLudvig won by checkmate"]

1. d4 {[%clk 0:03:01.9]} 1... b6 {[%clk 0:02:59.1]} 2. Nf3 {[%clk 0:03:03.4]}
2... Bb7 {[%clk 0:02:59.5]} 3. Bf4 {[%clk 0:03:03.5]} 3... e6 {[%clk 0:02:52]}
4. e3 {[%clk 0:02:59.4]} 4... f5 {[%clk 0:02:52.9]} 5. h3 {[%clk 0:02:32.7]}
5... Nf6 {[%clk 0:02:49.7]} 6. Bd3 {[%clk 0:02:29.6]} 6... Nc6 {[%clk
0:02:38.2]} 7. g4 {[%clk 0:02:30.2]} 7... Nb4 {[%clk 0:02:23.2]} 8. gxf5 {[%clk
0:02:17.7]} 8... Nxd3+ {[%clk 0:02:21]} 9. cxd3 {[%clk 0:02:19.6]} 9... exf5
{[%clk 0:02:21.2]} 10. Nbd2 {[%clk 0:02:19.4]} 10... Bb4 {[%clk 0:02:16.9]} 11.
Rg1 {[%clk 0:02:08.2]} 11... Qe7 {[%clk 0:01:57.9]} 12. a3 {[%clk 0:01:58.5]}
12... Bxd2+ {[%clk 0:01:32.4]} 13. Nxd2 {[%clk 0:01:49.2]} 13... Nd5 {[%clk
0:01:03.7]} 14. Bg5 {[%clk 0:01:49.7]} 14... Qf7 {[%clk 0:01:04.5]} 15. Nc4
{[%clk 0:01:27.7]} 15... d6 {[%clk 0:00:45]} 16. Qa4+ {[%clk 0:01:10.9]} 16...
Qd7 {[%clk 0:00:31.5]} 17. Qxd7+ {[%clk 0:01:11.3]} 17... Kxd7 {[%clk
0:00:33.4]} 18. f4 {[%clk 0:00:53.7]} 18... Rae8 {[%clk 0:00:22]} 19. Kd2 {[%clk
0:00:52.7]} 19... Re6 {[%clk 0:00:10.1]} 20. Rg3 {[%clk 0:00:47.8]} 20... Rhe8
{[%clk 0:00:08.6]} 21. Bh4 {[%clk 0:00:44.9]} 21... g6 {[%clk 0:00:09.2]} 22.
Bg5 {[%clk 0:00:39.9]} 22... Ba6 {[%clk 0:00:08.4]} 23. Re1 {[%clk 0:00:38.8]}
23... Bb7 {[%clk 0:00:07.3]} 24. b4 {[%clk 0:00:36.9]} 24... a6 {[%clk 0:00:07]}
25. h4 {[%clk 0:00:34.2]} 25... c6 {[%clk 0:00:05.6]} 26. h5 {[%clk 0:00:29]}
26... gxh5 {[%clk 0:00:04.9]} 27. Rh3 {[%clk 0:00:30.1]} 27... h6 {[%clk
0:00:05.1]} 28. Bh4 {[%clk 0:00:29.7]} 28... Nxf4 {[%clk 0:00:05.4]} 29. exf4
{[%clk 0:00:25.1]} 29... Rxe1 {[%clk 0:00:03.3]} 30. Bxe1 {[%clk 0:00:27]} 30...
b5 {[%clk 0:00:03.4]} 31. Na5 {[%clk 0:00:27]} 31... Bc8 {[%clk 0:00:02.7]} 32.
Rxh5 {[%clk 0:00:27.9]} 32... Rg8 {[%clk 0:00:03]} 33. Rxh6 {[%clk 0:00:27.9]}
33... Rg2+ {[%clk 0:00:04]} 34. Kc3 {[%clk 0:00:28.9]} 34... Re2 {[%clk
0:00:03.8]} 35. Rh7+ {[%clk 0:00:29.2]} 35... Ke6 {[%clk 0:00:04.1]} 36. Nxc6
{[%clk 0:00:29.8]} 36... Rxe1 {[%clk 0:00:03.6]} 37. Re7+ {[%clk 0:00:30]} 37...
Kd5 {[%clk 0:00:03.8]} 38. Rxe1 {[%clk 0:00:30.9]} 38... a5 {[%clk 0:00:05.3]}
39. Ne7# {[%clk 0:00:31.3]} 1-0